[Event "*** Titled Tuesday Blitz"]
[Site "Chess.com"]
[Date "2019.11.05"]
[Round "4"]
[White "saraswathii"]
[Black "cukus"]
[Result "1-0"]
[WhiteElo "2214"]
[BlackElo "2450"]
[TimeControl "180+2"]
[EndTime "13:53:47 PST"]
[Termination "saraswathii won by resignation"]

1. d4 {[%clk 0:03:01.9]} 1... Nf6 {[%clk 0:02:54.9]} 2. Bf4 {[%clk 0:02:59.3]}
2... g6 {[%clk 0:02:53.8]} 3. Nf3 {[%clk 0:02:56.1]} 3... Bg7 {[%clk 0:02:54.6]}
4. e3 {[%clk 0:02:56.8]} 4... O-O {[%clk 0:02:55.7]} 5. Be2 {[%clk 0:02:57.6]}
5... d6 {[%clk 0:02:57]} 6. O-O {[%clk 0:02:57.4]} 6... b6 {[%clk 0:02:58.5]} 7.
c4 {[%clk 0:02:56.6]} 7... Bb7 {[%clk 0:02:53.3]} 8. h3 {[%clk 0:02:54.6]} 8...
Nbd7 {[%clk 0:02:54.3]} 9. Nc3 {[%clk 0:02:52]} 9... e6 {[%clk 0:02:53.9]} 10.
Rc1 {[%clk 0:02:50.6]} 10... Qe7 {[%clk 0:02:54.9]} 11. Nb5 {[%clk 0:02:48.4]}
11... Rfc8 {[%clk 0:02:49.9]} 12. a4 {[%clk 0:02:42.4]} 12... a6 {[%clk
0:02:51]} 13. Nc3 {[%clk 0:02:39.6]} 13... h6 {[%clk 0:02:48]} 14. b4 {[%clk
0:02:37.3]} 14... Nh5 {[%clk 0:02:44.4]} 15. Bh2 {[%clk 0:02:33.8]} 15... f5
{[%clk 0:02:45.5]} 16. Qb3 {[%clk 0:02:26.9]} 16... Kh7 {[%clk 0:02:42.7]} 17.
Rfd1 {[%clk 0:02:23.2]} 17... Rf8 {[%clk 0:02:39.3]} 18. Bd3 {[%clk 0:02:08.6]}
18... Bxf3 {[%clk 0:02:30.1]} 19. gxf3 {[%clk 0:02:06.2]} 19... f4 {[%clk
0:02:31.5]} 20. Be4 {[%clk 0:01:59.3]} 20... Rab8 {[%clk 0:02:28.6]} 21. Qc2
{[%clk 0:01:53.7]} 21... Rf6 {[%clk 0:02:17.2]} 22. exf4 {[%clk 0:01:43.1]}
22... Rf5 {[%clk 0:02:13.7]} 23. Bxf5 {[%clk 0:01:31.6]} 23... gxf5 {[%clk
0:02:13.8]} 24. d5 {[%clk 0:01:14.1]} 24... Rg8 {[%clk 0:02:12.2]} 25. Kh1
{[%clk 0:01:08.4]} 25... Qh4 {[%clk 0:02:08.7]} 26. dxe6 {[%clk 0:01:06.8]}
26... Qxh3 {[%clk 0:02:10]} 27. Rg1 {[%clk 0:00:55]} 27... Qxf3+ {[%clk
0:02:08.6]} 28. Rg2 {[%clk 0:00:53.8]} 28... Bxc3 {[%clk 0:02:04.2]} 29. Qxf5+
{[%clk 0:00:46.1]} 29... Kh8 {[%clk 0:02:04.9]} 30. Rg1 {[%clk 0:00:42.7]} 30...
Ndf6 {[%clk 0:02:04]} 31. e7 {[%clk 0:00:35.4]} 31... Ng4 {[%clk 0:02:01]} 32.
Bg3 {[%clk 0:00:26.9]} 32... Ne3 {[%clk 0:01:26]} 33. fxe3 {[%clk 0:00:19.7]}
33... Nxg3+ {[%clk 0:01:07.1]} 34. Kh2 {[%clk 0:00:20.4]} 34... Nf1+ {[%clk
0:00:48.3]} 35. Kh1 {[%clk 0:00:19.5]} 35... Nxe3 {[%clk 0:00:35.4]} 36. e8=Q
{[%clk 0:00:08.6]} 36... Rxe8 {[%clk 0:00:32.5]} 37. Qf7 {[%clk 0:00:07.1]}
37... Rb8 {[%clk 0:00:11.2]} 38. Kh2 {[%clk 0:00:04.1]} 38... Nxg2 {[%clk
0:00:04.6]} 39. Rxg2 {[%clk 0:00:06]} 39... Qe4 {[%clk 0:00:02.8]} 40. Rg6
{[%clk 0:00:05.3]} 40... Qe2+ {[%clk 0:00:03.4]} 41. Kg3 {[%clk 0:00:05.3]}
41... Qh5 {[%clk 0:00:04.2]} 42. Qe6 {[%clk 0:00:05.1]} 42... Bg7 {[%clk
0:00:02.8]} 43. f5 {[%clk 0:00:05.3]} 43... Rf8 {[%clk 0:00:02.5]} 44. f6 {[%clk
0:00:05.7]} 44... Rxf6 {[%clk 0:00:02.2]} 45. Qe8+ {[%clk 0:00:06]} 45... Kh7
{[%clk 0:00:03]} 46. Rxg7+ {[%clk 0:00:07]} 46... Kxg7 {[%clk 0:00:04.1]} 47.
Qxh5 {[%clk 0:00:08.9]} 47... Rg6+ {[%clk 0:00:05.1]} 48. Kf4 {[%clk 0:00:09.5]}
48... Rg5 {[%clk 0:00:06.7]} 49. Qe8 {[%clk 0:00:09.4]} 49... Kf6 {[%clk
0:00:05.9]} 50. Qd8+ {[%clk 0:00:10.3]} 50... Ke6 {[%clk 0:00:07.4]} 51. Qxc7
{[%clk 0:00:12.2]} 51... b5 {[%clk 0:00:08.3]} 52. axb5 {[%clk 0:00:12.2]} 52...
axb5 {[%clk 0:00:10.2]} 53. Qc8+ {[%clk 0:00:11.7]} 53... Ke7 {[%clk 0:00:10.7]}
54. Qb7+ {[%clk 0:00:12.1]} 54... Ke6 {[%clk 0:00:12.2]} 55. cxb5 {[%clk
0:00:13.2]} 55... d5 {[%clk 0:00:12.2]} 56. Qc6+ {[%clk 0:00:13.6]} 56... Ke7
{[%clk 0:00:13.3]} 57. b6 {[%clk 0:00:14.4]} 57... Rg8 {[%clk 0:00:13.6]} 58. b7
{[%clk 0:00:15.1]} 1-0

[Event "*** Titled Tuesday Blitz"]
[Site "Chess.com"]
[Date "2019.11.05"]
[Round "4"]
[White "Crazy_girl99"]
[Black "SHIVACalypso"]
[Result "1-0"]
[WhiteElo "2503"]
[BlackElo "2279"]
[TimeControl "180+2"]
[EndTime "13:53:50 PST"]
[Termination "Crazy_girl99 won by resignation"]

1. e4 {[%clk 0:03:01.9]} 1... e6 {[%clk 0:02:59.4]} 2. d4 {[%clk 0:03:02.3]}
2... d5 {[%clk 0:03:00.5]} 3. Nd2 {[%clk 0:03:01.8]} 3... Nf6 {[%clk 0:03:01.2]}
4. e5 {[%clk 0:03:02.7]} 4... Nfd7 {[%clk 0:03:01.8]} 5. Ngf3 {[%clk 0:03:03.7]}
5... c5 {[%clk 0:03:02.6]} 6. c3 {[%clk 0:03:05.1]} 6... Nc6 {[%clk 0:03:02.7]}
7. Bd3 {[%clk 0:02:58.9]} 7... cxd4 {[%clk 0:03:00.9]} 8. cxd4 {[%clk
0:02:59.7]} 8... f6 {[%clk 0:03:02]} 9. exf6 {[%clk 0:02:59.9]} 9... Nxf6 {[%clk
0:03:03.9]} 10. O-O {[%clk 0:03:00.9]} 10... Bd6 {[%clk 0:03:04.2]} 11. Re1
{[%clk 0:03:02.4]} 11... O-O {[%clk 0:03:04.7]} 12. Nf1 {[%clk 0:03:02.4]} 12...
Qc7 {[%clk 0:02:55.6]} 13. Bg5 {[%clk 0:03:01.5]} 13... Bd7 {[%clk 0:02:50.7]}
14. Rc1 {[%clk 0:03:01.4]} 14... Qb6 {[%clk 0:02:41.7]} 15. b3 {[%clk
0:02:53.6]} 15... Kh8 {[%clk 0:02:41.4]} 16. Bb1 {[%clk 0:02:53.4]} 16... Ba3
{[%clk 0:02:20.8]} 17. Rc2 {[%clk 0:02:42.4]} 17... Ne4 {[%clk 0:02:08.2]} 18.
Be3 {[%clk 0:02:40.7]} 18... Nb4 {[%clk 0:02:05.4]} 19. Ne5 {[%clk 0:02:36.8]}
19... Be8 {[%clk 0:01:59.6]} 20. Rce2 {[%clk 0:02:32.6]} 20... Nc3 {[%clk
0:01:59.3]} 21. Qd2 {[%clk 0:02:33.6]} 21... Nxe2+ {[%clk 0:01:59]} 22. Qxe2
{[%clk 0:02:34.9]} 22... Nc6 {[%clk 0:01:45.9]} 23. Qd3 {[%clk 0:02:13.1]} 23...
g6 {[%clk 0:01:46.2]} 24. Bh6 {[%clk 0:02:10.9]} 24... Nxe5 {[%clk 0:01:42.8]}
25. Rxe5 {[%clk 0:02:10.6]} 25... Rg8 {[%clk 0:01:42]} 26. Qh3 {[%clk
0:02:09.3]} 26... Qc7 {[%clk 0:01:35.8]} 27. Bf4 {[%clk 0:02:04.6]} 27... Bd6
{[%clk 0:01:33.6]} 28. Qxe6 {[%clk 0:01:54.5]} 28... Bf7 {[%clk 0:01:14]} 29.
Qf6+ {[%clk 0:01:55.2]} 29... Rg7 {[%clk 0:01:15.2]} 30. Bh6 {[%clk 0:01:42.5]}
30... Rg8 {[%clk 0:01:11.2]} 31. Re1 {[%clk 0:01:37.1]} 31... Bf8 {[%clk
0:00:59.7]} 32. Ne3 {[%clk 0:01:30.7]} 32... Qe7 {[%clk 0:00:51]} 33. Qf3 {[%clk
0:01:22.7]} 33... Qb4 {[%clk 0:00:37]} 34. Rc1 {[%clk 0:01:16.4]} 34... Qd2
{[%clk 0:00:30.9]} 35. Ng4 {[%clk 0:01:15.1]} 35... Qxd4 {[%clk 0:00:27.1]} 36.
Nf6 {[%clk 0:01:15.4]} 36... Ba3 {[%clk 0:00:20.1]} 37. Rd1 {[%clk 0:01:14]}
37... Qh4 {[%clk 0:00:17.2]} 38. Nxg8 {[%clk 0:01:14]} 38... Kxg8 {[%clk
0:00:17.3]} 39. Bxg7 {[%clk 0:01:14.3]} 39... Kxg7 {[%clk 0:00:19.2]} 40. g3
{[%clk 0:01:15.2]} 40... Qb4 {[%clk 0:00:19]} 41. Qe3 {[%clk 0:01:13.6]} 41...
Qd6 {[%clk 0:00:17.1]} 42. Be4 {[%clk 0:01:09.3]} 42... Bc5 {[%clk 0:00:15.2]}
43. Qc3+ {[%clk 0:01:09.8]} 43... d4 {[%clk 0:00:16.6]} 44. Qd3 {[%clk
0:01:08.9]} 44... a5 {[%clk 0:00:11.5]} 45. Bxb7 {[%clk 0:01:09]} 45... Qb6
{[%clk 0:00:11]} 46. Be4 {[%clk 0:01:09]} 46... Qb4 {[%clk 0:00:10.4]} 47. Qd2
{[%clk 0:01:06]} 47... Qb6 {[%clk 0:00:10.2]} 48. Rc1 {[%clk 0:01:05]} 48... Bb4
{[%clk 0:00:09.7]} 49. Qf4 {[%clk 0:01:05.4]} 49... Bc3 {[%clk 0:00:08]} 50.
Qe5+ {[%clk 0:01:04.6]} 50... Kg8 {[%clk 0:00:08.4]} 51. Bd3 {[%clk 0:01:00.8]}
51... Qb4 {[%clk 0:00:03.3]} 52. Rd1 {[%clk 0:00:59.5]} 52... Qa3 {[%clk
0:00:04]} 53. Bb1 {[%clk 0:01:00]} 53... Qb4 {[%clk 0:00:05.2]} 54. Qe4 {[%clk
0:00:59.2]} 54... Qb6 {[%clk 0:00:06]} 55. Rd3 {[%clk 0:00:59.9]} 55... Qd6
{[%clk 0:00:06.5]} 56. Qa8+ {[%clk 0:00:58.8]} 56... Kg7 {[%clk 0:00:06.9]} 57.
Rf3 {[%clk 0:00:57.1]} 57... Bd5 {[%clk 0:00:07.2]} 58. Qa7+ {[%clk 0:00:57.7]}
58... Kh6 {[%clk 0:00:07.9]} 59. Rf4 {[%clk 0:00:57.5]} 59... Qe6 {[%clk
0:00:07.6]} 60. Bd3 {[%clk 0:00:49]} 60... Qe1+ {[%clk 0:00:06.4]} 61. Bf1
{[%clk 0:00:49.5]} 61... Qe6 {[%clk 0:00:06.3]} 62. Rh4+ {[%clk 0:00:49.6]}
62... Kg5 {[%clk 0:00:06.7]} 63. Qxh7 {[%clk 0:00:51.1]} 63... Kf6 {[%clk
0:00:06]} 64. Rf4+ {[%clk 0:00:50.5]} 64... Ke5 {[%clk 0:00:07.2]} 65. Qc7+
{[%clk 0:00:50.5]} 65... Qd6 {[%clk 0:00:06.8]} 66. Qg7+ {[%clk 0:00:51.4]}
66... Ke6 {[%clk 0:00:05.7]} 67. Rf6+ {[%clk 0:00:52.3]} 67... Ke5 {[%clk
0:00:07.1]} 68. Rxd6+ {[%clk 0:00:53.2]} 68... Kxd6 {[%clk 0:00:09]} 69. Qxg6+
{[%clk 0:00:54]} 1-0

[Event "*** Titled Tuesday Blitz"]
[Site "Chess.com"]
[Date "2019.11.05"]
[Round "4"]
[White "LPSupi"]
[Black "AryanTari"]
[Result "0-1"]
[WhiteElo "2986"]
[BlackElo "2858"]
[TimeControl "180+2"]
[EndTime "13:53:52 PST"]
[Termination "AryanTari won by resignation"]

1. e4 {[%clk 0:02:41.7]} 1... c6 {[%clk 0:02:59.5]} 2. d4 {[%clk 0:02:42.1]}
2... d5 {[%clk 0:03:00.9]} 3. e5 {[%clk 0:02:43.6]} 3... Bf5 {[%clk 0:03:01.2]}
4. h4 {[%clk 0:02:44.1]} 4... c5 {[%clk 0:03:01.3]} 5. dxc5 {[%clk 0:02:43.8]}
5... Nc6 {[%clk 0:02:58.9]} 6. Bb5 {[%clk 0:02:40.6]} 6... Bd7 {[%clk
0:02:59.8]} 7. Ne2 {[%clk 0:02:35]} 7... e6 {[%clk 0:02:55.6]} 8. Be3 {[%clk
0:02:31.4]} 8... Nxe5 {[%clk 0:02:54.5]} 9. a4 {[%clk 0:02:23.1]} 9... Nf6
{[%clk 0:02:51.2]} 10. Qd4 {[%clk 0:02:21.8]} 10... Neg4 {[%clk 0:02:37.2]} 11.
Bg5 {[%clk 0:02:06.3]} 11... Rc8 {[%clk 0:02:34.6]} 12. b4 {[%clk 0:01:50.1]}
12... Be7 {[%clk 0:02:10.1]} 13. f3 {[%clk 0:01:44.9]} 13... Nh6 {[%clk
0:02:07.8]} 14. Bxh6 {[%clk 0:01:45.6]} 14... gxh6 {[%clk 0:02:08.7]} 15. g4
{[%clk 0:01:42.1]} 15... Rg8 {[%clk 0:02:08.2]} 16. Nbc3 {[%clk 0:01:41.4]}
16... a5 {[%clk 0:01:56.8]} 17. Bxd7+ {[%clk 0:01:22.3]} 17... Nxd7 {[%clk
0:01:57.3]} 18. bxa5 {[%clk 0:01:16.4]} 18... Bxc5 {[%clk 0:01:52.1]} 19. Qd3
{[%clk 0:01:16.7]} 19... Qf6 {[%clk 0:01:35]} 20. Rb1 {[%clk 0:01:09.9]} 20...
Ne5 {[%clk 0:01:23.8]} 21. Qb5+ {[%clk 0:01:10.4]} 21... Kf8 {[%clk 0:01:23.2]}
22. Qxb7 {[%clk 0:01:01.8]} 22... Kg7 {[%clk 0:01:22.8]} 23. f4 {[%clk
0:00:58.4]} 23... Nf3+ {[%clk 0:01:06.4]} 24. Kd1 {[%clk 0:00:59]} 24... Bd4
{[%clk 0:00:46.2]} 25. Nb5 {[%clk 0:00:56.6]} 25... Be3 {[%clk 0:00:33]} 26. Rh3
{[%clk 0:00:52.2]} 26... Nd2 {[%clk 0:00:34.2]} 27. g5 {[%clk 0:00:24.3]} 27...
Qf5 {[%clk 0:00:30.4]} 28. Rxe3 {[%clk 0:00:02.7]} 28... Qxc2+ {[%clk
0:00:30.5]} 29. Ke1 {[%clk 0:00:04.3]} 29... Qxb1+ {[%clk 0:00:32]} 30. Kf2
{[%clk 0:00:04.4]} 30... Ne4+ {[%clk 0:00:21.6]} 31. Rxe4 {[%clk 0:00:04.9]}
31... dxe4 {[%clk 0:00:20.4]} 32. gxh6+ {[%clk 0:00:04.7]} 32... Kh8 {[%clk
0:00:17.2]} 33. Qe7 {[%clk 0:00:05.2]} 33... Qb2 {[%clk 0:00:17.3]} 34. Nd4
{[%clk 0:00:05.2]} 34... Rg6 {[%clk 0:00:16.7]} 35. h5 {[%clk 0:00:06.5]} 35...
Rxh6 {[%clk 0:00:16.5]} 36. Qg5 {[%clk 0:00:07.4]} 36... Rc2 {[%clk 0:00:06.4]}
37. Qxh6 {[%clk 0:00:07.7]} 37... Qxd4+ {[%clk 0:00:07.4]} 38. Kg3 {[%clk
0:00:06.8]} 38... Qg7+ {[%clk 0:00:05.1]} 39. Qxg7+ {[%clk 0:00:07.1]} 39...
Kxg7 {[%clk 0:00:07]} 40. Nd4 {[%clk 0:00:07.6]} 40... Rc4 {[%clk 0:00:08]} 41.
Nb3 {[%clk 0:00:05.4]} 41... Rxa4 {[%clk 0:00:08.9]} 42. Kg4 {[%clk 0:00:07]}
42... Ra3 {[%clk 0:00:10.2]} 43. Nc5 {[%clk 0:00:08.1]} 43... Rxa5 {[%clk
0:00:11.2]} 44. Nd7 {[%clk 0:00:09.5]} 44... f5+ {[%clk 0:00:12.2]} 45. Kg5
{[%clk 0:00:10.1]} 45... h6+ {[%clk 0:00:13.6]} 46. Kh4 {[%clk 0:00:11.7]} 46...
e3 {[%clk 0:00:14.2]} 47. Kg3 {[%clk 0:00:11.1]} 47... Ra2 {[%clk 0:00:13.9]}
48. Nc5 {[%clk 0:00:11.8]} 48... e2 {[%clk 0:00:14.7]} 49. Kf2 {[%clk
0:00:12.5]} 49... e1=Q+ {[%clk 0:00:15.6]} 50. Kxe1 {[%clk 0:00:13.3]} 50... Rh2
{[%clk 0:00:17.2]} 51. Nxe6+ {[%clk 0:00:14]} 51... Kf6 {[%clk 0:00:18.9]} 52.
Nd4 {[%clk 0:00:14.3]} 52... Rxh5 {[%clk 0:00:20.4]} 53. Kf2 {[%clk 0:00:15.8]}
53... Rh3 {[%clk 0:00:21.9]} 54. Nf3 {[%clk 0:00:16.1]} 54... Ke6 {[%clk
0:00:19.9]} 55. Nd4+ {[%clk 0:00:13.9]} 55... Kf6 {[%clk 0:00:20]} 56. Nf3
{[%clk 0:00:13.8]} 56... Rxf3+ {[%clk 0:00:19.7]} 57. Kxf3 {[%clk 0:00:15.2]}
57... Ke6 {[%clk 0:00:21.4]} 58. Ke3 {[%clk 0:00:14.4]} 58... Kd5 {[%clk
0:00:23]} 59. Kd3 {[%clk 0:00:15.9]} 59... h5 {[%clk 0:00:24.6]} 60. Ke3 {[%clk
0:00:17.3]} 60... h4 {[%clk 0:00:26.3]} 61. Kf3 {[%clk 0:00:16.4]} 61... Kd4
{[%clk 0:00:27.5]} 62. Kg2 {[%clk 0:00:16.8]} 62... Ke4 {[%clk 0:00:29]} 63. Kh3
{[%clk 0:00:18.5]} 63... Kxf4 {[%clk 0:00:30.6]} 64. Kxh4 {[%clk 0:00:20.4]}
64... Ke3 {[%clk 0:00:32.3]} 0-1

[Event "*** Titled Tuesday Blitz"]
[Site "Chess.com"]
[Date "2019.11.05"]
[Round "4"]
[White "nailbeshirli"]
[Black "MITerryble"]
[Result "1-0"]
[WhiteElo "2664"]
[BlackElo "2864"]
[TimeControl "180+2"]
[EndTime "13:53:53 PST"]
[Termination "nailbeshirli won by resignation"]

1. e4 {[%clk 0:03:01.9]} 1... e6 {[%clk 0:03:01.1]} 2. d4 {[%clk 0:03:02.4]}
2... d5 {[%clk 0:03:02.5]} 3. Nd2 {[%clk 0:03:04.2]} 3... Be7 {[%clk 0:03:03.4]}
4. e5 {[%clk 0:03:02.5]} 4... c5 {[%clk 0:03:04.2]} 5. c3 {[%clk 0:03:03.5]}
5... Nc6 {[%clk 0:03:05.2]} 6. Ndf3 {[%clk 0:03:04]} 6... cxd4 {[%clk
0:03:06.3]} 7. cxd4 {[%clk 0:03:04.9]} 7... Bb4+ {[%clk 0:03:07.5]} 8. Bd2
{[%clk 0:03:05.6]} 8... Qb6 {[%clk 0:03:09.1]} 9. Ne2 {[%clk 0:03:02.6]} 9...
Bd7 {[%clk 0:03:09.2]} 10. a3 {[%clk 0:03:01.3]} 10... Bxd2+ {[%clk 0:03:10.2]}
11. Qxd2 {[%clk 0:03:03.2]} 11... Na5 {[%clk 0:03:11.6]} 12. Nc1 {[%clk
0:02:45.7]} 12... Bb5 {[%clk 0:03:02.8]} 13. b4 {[%clk 0:02:41.2]} 13... Nc4
{[%clk 0:03:03.6]} 14. Qc3 {[%clk 0:02:25.4]} 14... Rc8 {[%clk 0:02:48.2]} 15.
Nd3 {[%clk 0:02:22]} 15... Nd6 {[%clk 0:02:38.9]} 16. Nc5 {[%clk 0:02:17.5]}
16... Nf5 {[%clk 0:01:46.2]} 17. Bxb5+ {[%clk 0:02:14.3]} 17... Qxb5 {[%clk
0:01:48.1]} 18. a4 {[%clk 0:02:13.9]} 18... Qb6 {[%clk 0:01:43.5]} 19. O-O
{[%clk 0:02:10.4]} 19... Nge7 {[%clk 0:01:44.6]} 20. Rfc1 {[%clk 0:02:06]} 20...
h5 {[%clk 0:01:10.5]} 21. Qd2 {[%clk 0:02:03.3]} 21... Ng6 {[%clk 0:00:58.3]}
22. b5 {[%clk 0:01:59.5]} 22... Rb8 {[%clk 0:00:57.3]} 23. Rab1 {[%clk
0:01:57.4]} 23... Qd8 {[%clk 0:00:57.7]} 24. a5 {[%clk 0:01:57.3]} 24... O-O
{[%clk 0:00:49.5]} 25. b6 {[%clk 0:01:55.3]} 25... a6 {[%clk 0:00:45.9]} 26. g3
{[%clk 0:01:55.8]} 26... Qe7 {[%clk 0:00:41.9]} 27. Nd3 {[%clk 0:01:52.7]} 27...
Rfc8 {[%clk 0:00:41.7]} 28. Rc5 {[%clk 0:01:53.1]} 28... Rxc5 {[%clk 0:00:34.7]}
29. Nxc5 {[%clk 0:01:52.2]} 29... Rc8 {[%clk 0:00:34.6]} 30. Rc1 {[%clk
0:01:50.7]} 30... Nf8 {[%clk 0:00:32.4]} 31. Kg2 {[%clk 0:01:47.3]} 31... f6
{[%clk 0:00:24.5]} 32. Nd3 {[%clk 0:01:42.8]} 32... Qe8 {[%clk 0:00:18.7]} 33.
Rc7 {[%clk 0:01:37]} 33... Rxc7 {[%clk 0:00:18.7]} 34. bxc7 {[%clk 0:01:38.9]}
34... Qc6 {[%clk 0:00:19.5]} 35. Qc1 {[%clk 0:01:34.2]} 35... Qxc1 {[%clk
0:00:20.3]} 36. Nxc1 {[%clk 0:01:36.1]} 36... Ne7 {[%clk 0:00:22.2]} 37. Nd3
{[%clk 0:01:36]} 37... Nd7 {[%clk 0:00:21.9]} 38. Nd2 {[%clk 0:01:35.8]} 38...
b6 {[%clk 0:00:20.5]} 39. Nb3 {[%clk 0:01:27.5]} 39... bxa5 {[%clk 0:00:21.3]}
40. Nxa5 {[%clk 0:01:25.3]} 40... fxe5 {[%clk 0:00:18]} 41. dxe5 {[%clk
0:01:18.1]} 41... Nc8 {[%clk 0:00:15.4]} 42. Nc6 {[%clk 0:01:14.9]} 42... Kf7
{[%clk 0:00:15.8]} 43. Nb8 {[%clk 0:01:08.6]} 43... Ke7 {[%clk 0:00:09.8]} 44.
Nxa6 {[%clk 0:01:05]} 44... Ndb6 {[%clk 0:00:10.7]} 45. f4 {[%clk 0:00:53.5]}
45... Nc4 {[%clk 0:00:06.9]} 46. Nac5 {[%clk 0:00:47.8]} 46... g6 {[%clk
0:00:07.5]} 47. Kh3 {[%clk 0:00:44.9]} 47... Na3 {[%clk 0:00:07.7]} 48. Nb4
{[%clk 0:00:42.3]} 48... Nb5 {[%clk 0:00:08]} 49. Nc6+ {[%clk 0:00:43.1]} 49...
Ke8 {[%clk 0:00:09.4]} 50. Nxe6 {[%clk 0:00:41.3]} 50... Kd7 {[%clk 0:00:10.9]}
51. Ncd4 {[%clk 0:00:40]} 51... Nxc7 {[%clk 0:00:09.5]} 52. Nf8+ {[%clk
0:00:38.8]} 52... Ke8 {[%clk 0:00:09.8]} 53. Nxg6 {[%clk 0:00:40.4]} 53... Nb6
{[%clk 0:00:11]} 54. f5 {[%clk 0:00:41.1]} 54... Nc4 {[%clk 0:00:12.2]} 55. Kh4
{[%clk 0:00:33.9]} 55... Ne3 {[%clk 0:00:08.7]} 56. Kg5 {[%clk 0:00:33.8]} 56...
Kf7 {[%clk 0:00:06]} 57. e6+ {[%clk 0:00:33.9]} 57... Ke8 {[%clk 0:00:06.4]} 58.
f6 {[%clk 0:00:34.7]} 58... Nxe6+ {[%clk 0:00:07.7]} 59. Nxe6 {[%clk 0:00:36.6]}
59... Nc4 {[%clk 0:00:08.8]} 60. Nh8 {[%clk 0:00:35.8]} 60... Nd6 {[%clk
0:00:08.6]} 61. f7+ {[%clk 0:00:36.6]} 61... Nxf7+ {[%clk 0:00:10]} 62. Nxf7
{[%clk 0:00:38.5]} 62... Kxf7 {[%clk 0:00:11.9]} 63. Nd4 {[%clk 0:00:39.5]}
63... Ke7 {[%clk 0:00:12.3]} 64. Kxh5 {[%clk 0:00:40.6]} 64... Kf6 {[%clk
0:00:14.2]} 65. Kg4 {[%clk 0:00:42]} 65... Ke5 {[%clk 0:00:16.1]} 66. Nf3+
{[%clk 0:00:43.3]} 66... Ke4 {[%clk 0:00:18]} 67. h4 {[%clk 0:00:45.2]} 1-0

[Event "*** Titled Tuesday Blitz"]
[Site "Chess.com"]
[Date "2019.11.05"]
[Round "4"]
[White "Kostya_Nikologorskiy"]
[Black "MikaelyanArman"]
[Result "1-0"]
[WhiteElo "2546"]
[BlackElo "2726"]
[TimeControl "180+2"]
[EndTime "13:54:19 PST"]
[Termination "Kostya_Nikologorskiy won by resignation"]

1. d4 {[%clk 0:03:01.9]} 1... Nf6 {[%clk 0:02:59.5]} 2. c4 {[%clk 0:03:02.5]}
2... g6 {[%clk 0:03:00.2]} 3. Nc3 {[%clk 0:03:02.5]} 3... Bg7 {[%clk 0:03:01.2]}
4. e4 {[%clk 0:03:01.9]} 4... O-O {[%clk 0:03:02.1]} 5. Nf3 {[%clk 0:02:54.3]}
5... d6 {[%clk 0:03:03.1]} 6. Be2 {[%clk 0:02:54.6]} 6... Nbd7 {[%clk
0:03:01.6]} 7. O-O {[%clk 0:02:52.3]} 7... e5 {[%clk 0:03:02.5]} 8. Be3 {[%clk
0:02:53.1]} 8... Ng4 {[%clk 0:02:51.3]} 9. Bg5 {[%clk 0:02:51.4]} 9... f6 {[%clk
0:02:52.4]} 10. Bd2 {[%clk 0:02:44.9]} 10... h5 {[%clk 0:02:44.8]} 11. h3 {[%clk
0:02:30.5]} 11... Nh6 {[%clk 0:02:43.8]} 12. Re1 {[%clk 0:02:30]} 12... g5
{[%clk 0:02:35.3]} 13. dxe5 {[%clk 0:02:26.9]} 13... dxe5 {[%clk 0:02:35]} 14.
Be3 {[%clk 0:02:18.7]} 14... Nf7 {[%clk 0:02:29.3]} 15. c5 {[%clk 0:02:12.5]}
15... Re8 {[%clk 0:02:26.1]} 16. Qb3 {[%clk 0:02:03]} 16... c6 {[%clk
0:02:19.8]} 17. Rad1 {[%clk 0:01:57.7]} 17... Qe7 {[%clk 0:02:18.9]} 18. Qa3
{[%clk 0:01:46.9]} 18... Nf8 {[%clk 0:02:18.4]} 19. Nd2 {[%clk 0:01:45.7]} 19...
g4 {[%clk 0:02:14.5]} 20. hxg4 {[%clk 0:01:41.9]} 20... hxg4 {[%clk 0:02:09.3]}
21. Nc4 {[%clk 0:01:40.7]} 21... Be6 {[%clk 0:02:03.9]} 22. Rd2 {[%clk
0:01:19.3]} 22... Ng6 {[%clk 0:01:52.8]} 23. Red1 {[%clk 0:01:15.3]} 23... Nf4
{[%clk 0:01:50.7]} 24. Bxf4 {[%clk 0:01:05.9]} 24... exf4 {[%clk 0:01:52.6]} 25.
Nd6 {[%clk 0:01:06.3]} 25... Nxd6 {[%clk 0:01:37]} 26. cxd6 {[%clk 0:01:00]}
26... Qd7 {[%clk 0:01:38]} 27. Qa4 {[%clk 0:00:51.9]} 27... b5 {[%clk 0:01:35]}
28. Qd4 {[%clk 0:00:49.2]} 28... f5 {[%clk 0:01:31.6]} 29. Qc5 {[%clk
0:00:42.3]} 29... Bf7 {[%clk 0:01:24]} 30. exf5 {[%clk 0:00:40.5]} 30... Re5
{[%clk 0:01:23.8]} 31. Qb4 {[%clk 0:00:37]} 31... f3 {[%clk 0:01:18]} 32. gxf3
{[%clk 0:00:32.9]} 32... gxf3 {[%clk 0:01:16.8]} 33. Bxf3 {[%clk 0:00:34.1]}
33... Rxf5 {[%clk 0:01:13.5]} 34. Bg2 {[%clk 0:00:35.3]} 34... Rg5 {[%clk
0:01:12.2]} 35. Ne4 {[%clk 0:00:36.2]} 35... Rg6 {[%clk 0:01:13.2]} 36. Ng3
{[%clk 0:00:34.5]} 36... Re8 {[%clk 0:01:12.2]} 37. Qc5 {[%clk 0:00:33.3]} 37...
Rc8 {[%clk 0:00:51.8]} 38. Re1 {[%clk 0:00:27.7]} 38... Bf8 {[%clk 0:00:52.5]}
39. Nf5 {[%clk 0:00:24.6]} 39... Rg5 {[%clk 0:00:49.1]} 40. Re5 {[%clk
0:00:22.6]} 40... Bg6 {[%clk 0:00:42]} 41. Ne7+ {[%clk 0:00:20.2]} 41... Bxe7
{[%clk 0:00:41]} 42. Rxg5 {[%clk 0:00:21]} 42... Bxg5 {[%clk 0:00:38.3]} 43.
Qxg5 {[%clk 0:00:22.9]} 43... Kh7 {[%clk 0:00:33.5]} 44. Rd4 {[%clk 0:00:23.6]}
44... Rg8 {[%clk 0:00:24.5]} 45. Rh4+ {[%clk 0:00:19.2]} 45... Kg7 {[%clk
0:00:25.5]} 46. Qe5+ {[%clk 0:00:20.3]} 46... Kf8 {[%clk 0:00:23.3]} 47. Qf6+
{[%clk 0:00:20.6]} 47... Bf7 {[%clk 0:00:22.1]} 48. Rf4 {[%clk 0:00:15.6]} 48...
Rg7 {[%clk 0:00:17.7]} 49. Kh2 {[%clk 0:00:15.8]} 49... Rh7+ {[%clk 0:00:15]}
50. Kg1 {[%clk 0:00:16.9]} 50... Rg7 {[%clk 0:00:15.6]} 51. Rh4 {[%clk
0:00:17.5]} 51... Kg8 {[%clk 0:00:14.5]} 52. Qh6 {[%clk 0:00:17.2]} 52... Bd5
{[%clk 0:00:15.1]} 53. Qh8+ {[%clk 0:00:18.2]} 53... Kf7 {[%clk 0:00:15.9]} 54.
Rf4+ {[%clk 0:00:19.5]} 54... Kg6 {[%clk 0:00:15.6]} 55. Bxd5 {[%clk 0:00:16.9]}
55... cxd5 {[%clk 0:00:16.7]} 56. Rf3 {[%clk 0:00:14]} 56... Rh7 {[%clk
0:00:06.6]} 57. Qg8+ {[%clk 0:00:12.3]} 57... Rg7 {[%clk 0:00:05.9]} 58. Rg3+
{[%clk 0:00:13]} 58... Kf6 {[%clk 0:00:06.8]} 59. Qxg7+ {[%clk 0:00:14.4]} 59...
Qxg7 {[%clk 0:00:07.7]} 60. Rxg7 {[%clk 0:00:16.3]} 60... Kxg7 {[%clk
0:00:08.5]} 61. d7 {[%clk 0:00:17.8]} 1-0